bitfinex/quotes_ETHUSD_20251119
["timestamp","ask_amount","ask_price","bid_price","bid_amount"]
[1763525162468,0.673,3078.6,3078.0,0.1047]
[1763525162668,0.002,3079.3,3079.2,0.4179]
[1763525162872,0.002,3079.3,3079.2,0.7139549]
[1763525163080,0.002,3079.3,3079.2,0.2960549]
[1763525163483,0.002,3079.3,3079.2,0.7139549]
[1763525165688,0.002,3079.3,3079.2,1.1318549]
[1763525165883,0.002,3079.3,3079.2,1.5373589]
[1763525166283,0.002,3079.3,3079.2,1.1194589]
[1763525166818,0.002,3079.3,3079.2,1.5373589]
[1763525169316,0.002,3079.7,3079.2,1.5373589]
[1763525169317,0.002,3079.7,3079.3,0.405504]
[1763525169488,0.002,3079.7,3079.6,0.823404]
[1763525169691,0.002,3079.7,3079.6,1.1194589]
[1763525169917,0.002,3079.7,3079.6,1.5373589]
[1763525172012,0.002,3079.7,3079.6,1.1194589]
[1763525172213,0.002,3079.7,3079.6,1.5373589]
[1763525174911,0.002,3079.7,3079.6,1.73770479]
[1763525175527,0.002,3080.8,3080.0,1.31249664]
[1763525175714,0.002,3080.8,3080.7,0.980004]
[1763525176023,0.002,3080.8,3080.7,1.2760589]
[1763525176325,0.002,3080.8,3080.7,1.6939589]
[1763525176527,0.002,3080.8,3080.7,0.87095479]
[1763525176716,0.4932,3080.8,3080.7,0.7015589]
[1763525176915,0.9593,3080.8,3080.7,0.7015589]
[1763525177228,0.9593,3080.8,3080.7,0.2960549]
[1763525177532,0.9593,3080.8,3080.1,0.2960549]
[1763525177732,0.4661,3080.7,3079.6,0.9659793]
[1763525177908,0.4661,3080.7,3079.6,0.4179]
[1763525179024,0.4661,3080.7,3079.7,0.405504]
[1763525181642,0.4661,3080.7,3079.5,0.405504]
[1763525181953,0.4661,3080.7,3079.4,0.405504]
[1763525182958,0.4661,3080.7,3079.4,0.19438146]
[1763525183251,0.4661,3080.7,3078.8,1.13142529]
[1763525183435,0.4661,3080.7,3079.0,0.5745]
[1763525183809,0.4546,3079.1,3078.9,0.001]
[1763525184311,0.4466,3079.0,3078.9,0.001]
[1763525184819,0.9085,3079.0,3078.9,0.001]
[1763525188240,0.185,3079.4,3078.9,0.4189]
[1763525188641,0.6469,3079.4,3078.9,0.4189]
[1763525188848,0.4546,3079.0,3078.9,0.001]
[1763525189232,0.9165,3079.0,3078.9,0.001]
[1763525195782,1.93400266,3079.0,3078.9,0.001]
[1763525195922,2.12740293,3079.0,3078.5,0.001]
[1763525196122,0.6316,3078.6,3078.5,0.001]
[1763525196345,1.1249,3078.6,3078.5,0.001]
[1763525196657,1.62587737,3078.6,3078.2,0.001]
[1763525196856,0.4334,3078.3,3078.2,0.001]
[1763525197327,0.9267,3078.3,3078.2,0.001]
[1763525199934,1.94420266,3078.3,3078.2,0.001]
[1763525200244,1.01750266,3078.2,3077.0,0.001]
[1763525200456,0.6364,3077.2,3077.0,0.001]
[1763525200945,1.1297,3077.2,3077.0,0.001]
[1763525204142,0.1899,3077.4,3077.0,0.001]
[1763525204589,0.6832,3077.4,3077.0,0.001]
[1763525204730,0.1899,3077.8,3077.3,0.4179]
[1763525204931,0.1899,3077.8,3077.1,0.1576]
[1763525204932,0.4762,3077.2,3077.1,0.001]
[1763525205948,0.1899,3077.8,3077.1,0.5755]
[1763525206208,0.6832,3077.8,3077.1,0.1576]
[1763525206959,0.1899,3077.8,3077.1,0.1576]
[1763525208361,0.6832,3077.8,3077.1,0.1576]
[1763525208663,0.4762,3077.2,3077.1,0.001]
[1763525209066,0.4933,3077.5,3077.1,0.001]
[1763525209271,0.1899,3076.9,3074.0,3.07305673]
[1763525209433,0.0048,3076.4,3074.7,0.5748]
[1763525209632,0.52132529,3076.4,3074.7,0.5748]
[1763525209834,0.0084,3076.1,3074.4,0.1852]
[1763525210055,0.6542,3075.9,3074.2,0.1852]
[1763525210250,1.18467293,3075.8,3074.2,0.1852]
[1763525210456,1.67797293,3075.8,3074.2,0.1852]
[1763525210655,0.4933,3075.7,3074.2,0.1852]
[1763525210856,0.51652529,3075.6,3074.2,0.1852]
[1763525211056,1.01750266,3075.6,3074.2,0.1852]
[1763525211359,0.4933,3075.5,3074.2,0.6553]
[1763525212052,0.99427737,3075.5,3074.0,0.1566]
[1763525212303,1.01750266,3075.4,3074.0,0.1566]
[1763525212467,1.51080266,3075.4,3074.0,0.1566]
[1763525212665,0.4933,3075.3,3074.0,0.1566]
[1763525212867,1.51080266,3075.3,3074.0,0.1566]
[1763525213057,0.4933,3075.2,3074.0,0.6267]
[1763525213253,0.99427737,3075.2,3074.0,0.6267]
[1763525213500,0.4933,3075.1,3074.0,0.5767]
[1763525213993,0.4933,3075.1,3074.0,0.1066]
[1763525214168,0.4933,3075.1,3073.6,0.6553]
[1763525214169,0.51652529,3075.0,3073.6,0.6553]
[1763525214488,0.6832,3074.9,3073.6,0.6553]
[1763525214857,0.4933,3074.8,3073.6,0.6553]
[1763525215659,0.4933,3074.8,3073.7,0.4701]
[1763525216582,0.4933,3075.7,3074.7,0.5643]
[1763525216767,0.4933,3075.4,3074.7,0.4971]
[1763525217255,0.4933,3075.4,3074.6,0.0672]
[1763525217453,0.4933,3075.4,3073.8,0.405504]
[1763525217454,0.4762,3074.7,3074.2,0.1852]
[1763525217792,0.4933,3075.4,3074.2,0.1852]
[1763525218002,0.4933,3075.4,3074.3,0.405504]
[1763525218491,0.4933,3075.4,3074.4,0.4701]
[1763525219277,0.1899,3075.9,3074.5,0.405504]
[1763525219607,0.4933,3075.8,3074.5,0.4701]
[1763525220009,0.4933,3075.8,3074.6,0.4701]
[1763525220368,0.4933,3075.8,3074.6,0.9402]
[1763525220699,0.53393983,3075.8,3074.6,0.9402]
[1763525221266,0.4933,3075.8,3074.2,0.6553]
[1763525221468,0.48361806,3075.7,3073.9,0.4701]
[1763525221668,0.48361806,3075.7,3074.1,0.001]
[1763525221669,0.405504,3075.5,3074.1,0.001]
[1763525221889,0.99315721,3075.4,3074.1,0.001]
[1763525222271,0.71005721,3075.3,3074.1,0.001]
[1763525222472,0.4933,3075.3,3074.1,0.0682]
[1763525222671,0.4933,3075.2,3074.1,0.0682]
[1763525223768,0.6816735,3075.7,3074.2,0.4701]
[1763525224021,0.4933,3075.4,3074.3,0.405504]
[1763525224316,0.04064644,3075.3,3074.3,0.405504]
[1763525224525,0.04064644,3075.3,3074.4,0.4701]
[1763525224699,0.1919,3075.9,3074.4,0.4701]
[1763525224700,0.4933,3075.8,3074.4,0.4701]
[1763525225230,0.04064115,3075.7,3074.4,0.4701]
[1763525225692,0.04064115,3075.7,3072.0,0.1852]
[1763525225693,0.6618,3073.9,3072.0,0.1852]
[1763525225888,0.4676,3073.6,3071.8,0.4701]
[1763525226137,2.57170749,3073.5,3071.8,0.4701]
[1763525226444,2.57170749,3073.5,3071.0,5.0]
[1763525226445,1.05989264,3071.9,3071.0,5.0]
[1763525226652,1.05989264,3071.9,3071.0,5.4701]
[1763525226811,1.24069279,3071.8,3071.0,5.0]
[1763525226988,0.4651,3071.7,3071.0,5.0]
[1763525227388,0.1529,3071.9,3071.1,0.1895]
[1763525227627,0.4651,3072.4,3071.1,0.6892]
[1763525227997,0.4651,3072.4,3071.1,0.1895]
[1763525228230,0.4651,3072.4,3071.0,5.59796862]
[1763525228231,0.4651,3072.4,3071.0,5.0]
[1763525228399,1.0231607,3072.4,3071.0,5.0]
[1763525228601,1.0231607,3072.4,3071.1,0.1129]
[1763525228801,0.4651,3072.3,3071.1,0.1129]
[1763525230149,0.4651,3072.3,3071.2,0.405504]
[1763525230310,0.4651,3072.8,3071.2,0.905204]
[1763525230498,0.4651,3072.8,3071.3,0.4997]
[1763525230899,0.4651,3072.8,3071.2,0.405504]
[1763525231120,0.4651,3072.8,3071.3,0.19250966]
[1763525232011,0.4651,3072.8,3071.4,0.905204]
[1763525232495,0.4651,3072.8,3071.6,0.405504]
[1763525233016,0.1529,3073.0,3071.7,0.405504]
[1763525233534,0.1529,3073.0,3071.9,0.405504]
[1763525233734,0.4651,3073.2,3071.9,0.405504]
[1763525233936,0.4651,3073.2,3072.1,0.405504]
[1763525234236,0.4651,3073.6,3072.3,0.405504]
[1763525234604,0.4651,3073.6,3072.4,0.405504]
[1763525235134,0.4651,3073.6,3072.5,0.405504]
[1763525235438,0.1899,3073.9,3072.5,0.405504]
[1763525235617,0.4651,3073.5,3072.0,0.405504]
[1763525235816,0.04067156,3073.4,3072.0,0.405504]
[1763525236018,0.04067156,3073.4,3072.1,0.405504]
[1763525236217,0.50577156,3073.4,3072.1,0.870604]
[1763525236419,0.04067156,3073.4,3072.1,1.370304]
[1763525236621,0.4651,3073.7,3072.3,0.405504]
[1763525237110,0.4651,3073.7,3072.3,0.4997]
[1763525237705,0.50576759,3073.7,3072.2,0.405504]
[1763525237910,0.50576759,3073.7,3072.1,0.4651]
[1763525237911,0.98938565,3073.7,3072.1,0.4651]
[1763525238338,0.63208352,3073.6,3072.1,0.4651]
[1763525238640,0.63208352,3073.6,3072.2,0.405504]
[1763525238941,0.4651,3073.5,3072.2,0.405504]
[1763525240036,0.16698352,3073.6,3072.3,0.4997]
[1763525240234,0.1899,3073.9,3072.3,0.4997]
[1763525240418,0.655,3073.9,3072.3,0.4997]
[1763525240624,0.1899,3073.9,3072.4,0.405504]
[1763525240853,0.4651,3074.3,3072.4,0.405504]
[1763525241031,0.1829,3073.9,3072.6,0.405504]
[1763525241229,0.86066387,3074.9,3072.5,0.405504]
[1763525241230,0.68267349,3074.6,3072.5,0.405504]
[1763525241437,1.18842654,3074.8,3072.7,0.405504]
[1763525241647,0.50575305,3074.8,3072.7,0.405504]
[1763525241819,0.4651,3074.7,3072.9,0.405504]
[1763525242258,0.4651,3074.7,3073.1,0.405504]
[1763525242753,0.4651,3074.7,3073.3,0.405504]
[1763525243161,0.1829,3075.0,3073.5,0.405504]
[1763525243657,1.34466387,3075.7,3073.7,0.405504]
[1763525243958,0.68344156,3075.6,3074.9,0.1044]
[1763525244123,0.484,3075.7,3074.9,0.1044]
[1763525244527,0.484,3075.7,3074.9,0.5642]
[1763525245462,0.002,3075.9,3075.0,0.865304]
[1763525245656,0.04263983,3075.8,3075.0,0.405504]
[1763525245856,0.002,3075.8,3075.2,0.405504]
[1763525246222,0.002,3075.8,3075.2,0.865304]
[1763525247859,0.002,3075.8,3075.7,0.905204]
[1763525248262,0.002,3075.8,3075.7,1.365004]
[1763525248839,0.002,3076.2,3075.8,1.365004]
[1763525249138,0.002,3076.3,3076.2,1.31249664]
[1763525249332,0.002,3076.3,3076.2,1.81219664]
[1763525249524,0.002,3076.5,3076.2,2.27199664]
[1763525249729,0.1808,3078.0,3076.5,0.405504]
[1763525249929,0.6648,3078.0,3076.5,0.905204]
[1763525250160,0.6648,3078.0,3076.5,1.365004]
[1763525250955,0.002,3079.0,3076.6,0.405504]
[1763525251155,0.002,3079.0,3078.9,0.592704]
[1763525251356,0.002,3079.0,3078.9,0.405504]
[1763525251947,0.002,3079.0,3078.2,0.4598]
[1763525252307,0.002,3079.0,3078.8,0.405504]
[1763525252450,0.002,3080.8,3079.7,0.405504]
[1763525252636,0.002,3080.8,3080.5,0.405504]
[1763525253134,0.486,3080.7,3079.7,0.405504]
[1763525253329,0.002,3080.7,3079.7,0.865304]
[1763525253769,0.002,3080.7,3080.6,0.592704]
[1763525254678,0.002,3080.7,3080.6,0.405504]
[1763525255664,0.002,3080.7,3080.6,0.865304]
[1763525256582,0.002,3080.7,3080.6,0.405504]
[1763525256994,0.002,3080.7,3080.6,0.875104]
[1763525257296,0.002,3081.2,3080.7,0.405504]
[1763525257498,0.002,3081.2,3080.9,0.405504]
[1763525257867,0.002,3081.2,3080.8,0.405504]
[1763525258066,0.002,3081.2,3080.8,0.5685894]
[1763525258361,0.002,3081.2,3081.0,0.405504]
[1763525258612,0.002,3081.2,3080.5,0.405504]
[1763525258895,0.002,3081.2,3080.4,5.77540284]
[1763525258896,0.002,3081.2,3080.6,0.405504]
[1763525259111,0.002,3081.2,3080.6,0.875104]
[1763525259507,0.002,3081.2,3080.8,0.405504]
[1763525260013,0.002,3081.2,3081.0,0.405504]
[1763525260577,0.002,3081.2,3080.4,0.875104]
[1763525260966,0.002,3081.2,3080.4,0.4696]
[1763525261166,0.002,3081.2,3080.1,0.6568]
[1763525261602,0.002,3081.2,3080.3,0.405504]
[1763525262005,0.002,3081.2,3080.5,0.405504]
[1763525262514,0.002,3081.2,3080.7,0.405504]
[1763525262865,0.002,3081.2,3080.9,0.405504]
[1763525263267,0.002,3081.2,3081.0,0.875104]
[1763525264301,0.002,3081.2,3081.0,0.405504]
[1763525264500,0.002,3081.2,3080.5,0.4696]
[1763525264902,0.002,3081.2,3080.6,0.405504]
[1763525265292,0.002,3081.2,3080.8,0.405504]
[1763525265794,0.002,3081.2,3080.4,0.405504]
[1763525266330,0.002,3081.2,3080.6,0.405504]
[1763525266671,0.002,3081.2,3080.8,0.405504]
[1763525266867,0.002,3081.2,3080.2,0.4696]
[1763525267701,0.002,3081.2,3080.3,0.405504]
[1763525268105,0.482,3081.1,3080.1,0.1872]
[1763525268711,0.482,3081.1,3080.2,0.405504]
[1763525269605,0.482,3081.1,3079.7,0.405504]
[1763525270413,0.482,3081.1,3079.7,0.875104]
[1763525270928,0.482,3081.1,3079.9,0.405504]
[1763525272321,0.482,3081.1,3080.0,0.405504]
[1763525272725,0.482,3081.1,3080.2,0.405504]
[1763525275447,0.482,3081.1,3080.1,0.1968]
[1763525275448,0.482,3081.1,3079.8,0.405504]
[1763525275601,0.482,3081.1,3079.8,1.09972961]
[1763525275955,0.002,3081.2,3081.0,0.654]
[1763525276134,0.002,3081.5,3081.4,0.405504]
[1763525276446,0.002,3081.5,3081.4,0.862704]
[1763525276644,0.002,3081.5,3081.2,0.405504]
[1763525276942,0.002,3081.5,3081.2,0.875104]
[1763525277106,0.002,3081.5,3081.4,0.862704]
[1763525277511,0.002,3081.5,3081.4,1.332304]
[1763525278447,0.002,3081.5,3081.4,0.862704]
[1763525278627,0.002,3081.5,3081.4,1.332304]
[1763525278831,0.002,3081.5,3080.6,0.4696]
[1763525279148,0.4625,3081.5,3080.6,0.4696]
[1763525279947,0.4625,3081.5,3080.7,0.405504]
[1763525280744,0.4625,3081.5,3079.0,4.13589353]
[1763525280745,0.2703,3080.8,3079.7,6.40263959]
[1763525280935,0.4421,3080.7,3079.6,0.5697]
[1763525281328,0.48,3080.6,3079.6,0.001]
[1763525281702,0.1955,3079.7,3079.6,0.001]
[1763525282067,0.656,3079.7,3079.6,0.001]
[1763525282204,0.1955,3080.0,3079.6,0.001]
[1763525282404,0.48,3080.4,3079.6,0.001]
[1763525282622,0.48,3080.3,3079.6,0.001]
[1763525283455,0.48,3080.7,3079.6,0.406504]
[1763525283609,0.48,3080.6,3079.6,0.406504]
[1763525284108,0.48,3080.6,3079.6,0.001]
[1763525284842,0.656,3079.7,3079.6,0.001]
[1763525285341,1.136,3079.7,3079.6,0.001]
[1763525286737,0.1964,3080.0,3079.6,0.001]
[1763525287249,0.4735,3079.7,3079.6,0.001]
[1763525287610,0.9558,3079.7,3079.6,0.001]
[1763525289716,0.9558,3079.7,3079.3,0.001]
[1763525289914,0.68767774,3079.9,3079.3,0.001]
[1763525289915,0.0296,3079.4,3079.3,0.001]
[1763525290351,0.5119,3079.4,3079.3,0.001]
[1763525291621,0.5119,3079.4,3077.8,0.1968]
[1763525291971,0.4691,3079.1,3077.9,0.405504]
[1763525292320,0.9514,3079.1,3077.9,0.405504]
[1763525294287,0.9514,3079.1,3078.9,0.001]
[1763525295587,0.9558,3079.1,3078.9,0.001]
[1763525297787,0.4735,3079.1,3078.9,0.001]
[1763525297986,0.9558,3079.1,3078.9,0.001]
[1763525298193,0.4823,3079.6,3078.9,0.001]
[1763525298490,1.16742005,3079.9,3078.9,0.001]
[1763525298665,0.4823,3079.9,3078.9,0.001]
[1763525298840,0.52288705,3079.8,3078.9,0.001]
[1763525299041,0.1964,3080.0,3079.1,0.6753]
[1763525299243,0.1964,3080.0,3079.1,0.1914]
[1763525299244,0.6787,3080.0,3079.1,0.1914]
[1763525299681,0.6787,3080.0,3079.2,0.405504]
[1763525299682,0.1964,3080.0,3079.2,0.405504]
[1763525299882,0.4823,3080.3,3079.2,0.405504]
[1763525300215,0.4823,3080.3,3079.4,0.405504]
[1763525300385,0.04058178,3080.2,3079.4,0.405504]
[1763525300913,0.4823,3080.2,3079.3,0.405504]
[1763525301216,0.4823,3080.2,3079.1,0.1914]
[1763525301380,0.4823,3080.2,3079.0,0.406504]
[1763525301381,0.04058309,3080.1,3079.0,0.406504]
[1763525301569,0.4823,3080.0,3079.0,0.406504]
[1763525301771,0.4823,3080.0,3079.2,0.405504]
[1763525302013,0.1964,3079.9,3079.2,0.405504]
[1763525302386,0.1964,3079.9,3079.3,0.1912]
[1763525302572,0.1865,3080.2,3079.4,0.405504]
[1763525302910,0.22708178,3080.2,3079.0,0.001]
[1763525303120,0.4619,3080.1,3079.0,0.001]
[1763525304119,0.04058441,3080.0,3079.0,0.001]
[1763525304651,0.1865,3080.2,3079.0,0.001]
[1763525304652,0.4619,3079.9,3079.0,0.001]
[1763525305004,0.4698,3079.1,3079.0,0.001]
[1763525305215,0.4619,3079.9,3079.0,0.001]
[1763525305430,0.4619,3079.8,3079.0,0.001]
[1763525307439,0.4698,3079.1,3079.0,0.001]
[1763525308227,0.4619,3079.4,3079.0,0.001]
[1763525308543,0.4619,3079.8,3079.0,0.001]
[1763525308708,0.1865,3080.2,3079.1,0.1912]
[1763525308709,0.4619,3080.1,3079.1,0.1912]
[1763525308908,0.4619,3080.1,3079.0,0.001]
[1763525311220,0.4698,3079.1,3079.0,0.001]
[1763525311633,0.4619,3079.5,3079.0,0.001]
[1763525311845,0.4698,3079.1,3079.0,0.001]
[1763525312356,0.9317,3079.1,3079.0,0.001]
[1763525313248,0.68954216,3079.8,3079.0,0.001]
[1763525313423,0.4619,3079.5,3079.0,0.001]
[1763525314045,0.4619,3079.8,3079.0,0.001]
[1763525314241,0.76145694,3079.8,3079.0,0.001]
[1763525314440,0.4619,3079.8,3079.0,0.001]
[1763525314926,0.4619,3079.8,3079.1,0.1912]
[1763525315125,0.29956354,3080.0,3079.1,0.1912]
[1763525315359,0.4619,3079.8,3079.0,0.001]
[1763525317860,0.04058836,3079.7,3079.0,0.001]
[1763525318263,0.4506,3079.7,3079.0,0.001]
[1763525319780,0.29956354,3080.0,3079.1,0.1967]
[1763525319981,0.4506,3079.9,3079.0,0.001]
[1763525320352,0.75016354,3079.9,3079.0,0.001]
[1763525320683,0.4506,3079.9,3079.0,0.472]
[1763525320883,0.4506,3079.8,3079.0,0.001]
[1763525324194,0.04058836,3079.7,3079.0,0.001]
[1763525324784,0.4506,3079.6,3079.0,0.001]
[1763525325958,0.4539,3079.1,3079.0,0.001]
[1763525327006,0.04059364,3079.3,3079.0,0.001]
[1763525327220,0.4539,3079.1,3079.0,0.001]
[1763525327379,0.4506,3079.6,3079.0,0.001]
[1763525327577,0.880504,3078.0,3075.1,7.35978751]
[1763525327808,0.880504,3078.0,3075.5,3.54535703]
[1763525327809,0.90699264,3076.4,3075.5,3.54535703]
[1763525328118,0.405504,3075.0,3072.7,0.1998]
[1763525328271,0.405504,3075.0,3071.7,0.001]
[1763525328272,0.405504,3074.2,3071.7,0.001]
[1763525328473,2.27899013,3072.1,3072.0,0.1998]
[1763525328709,3.46730736,3072.1,3071.7,0.001]
[1763525328908,0.69001913,3072.0,3071.7,0.001]
[1763525329121,4.46643699,3072.0,3071.7,0.001]
[1763525329297,1.59701177,3072.0,3071.7,0.001]
[1763525329610,4.0171953,3071.8,3071.7,0.001]
[1763525329818,4.70721443,3071.8,3071.7,0.001]
[1763525330022,5.61420707,3071.8,3071.7,0.001]
[1763525330222,1.59701177,3071.8,3071.4,0.001]
[1763525330382,0.69001913,3071.7,3071.4,0.001]
[1763525330579,0.69001913,3071.6,3071.4,0.001]
[1763525330781,0.69001913,3071.5,3071.4,0.001]
[1763525331714,0.69001913,3071.5,3071.4,0.472]
[1763525332278,0.69001913,3071.5,3071.4,0.001]
[1763525332720,0.69001913,3071.5,3071.4,0.472]
[1763525333520,3.48502489,3071.5,3071.4,0.472]
[1763525334331,0.69001913,3071.5,3071.4,0.472]
[1763525334533,2.92272475,3071.5,3071.4,0.472]
[1763525335243,0.69001913,3071.5,3071.4,0.472]
[1763525336129,2.3603059,3071.5,3071.4,0.472]
[1763525336443,0.69001913,3071.5,3071.4,0.472]
[1763525337237,0.69001913,3071.5,3071.4,0.9463]
[1763525337542,0.83533203,3072.3,3071.4,0.9463]
[1763525337719,0.6676982,3072.2,3071.7,0.4743]
[1763525337918,0.6676982,3072.1,3071.7,0.4743]
[1763525338121,0.6676982,3072.0,3071.7,0.9453]
[1763525338323,0.66727061,3071.9,3071.4,0.001]
[1763525338517,0.83533203,3072.3,3071.4,0.001]
[1763525338711,0.66722016,3072.2,3071.4,0.001]
[1763525338912,0.66722016,3072.1,3071.4,0.001]
[1763525339124,0.66722016,3072.0,3071.4,0.472]
[1763525339321,0.66722016,3071.9,3071.4,0.472]
[1763525339524,1.74232467,3072.3,3071.4,0.472]
[1763525339525,0.83533203,3072.3,3071.4,0.472]
[1763525339820,0.66686262,3072.2,3071.4,0.472]
[1763525340018,0.66686262,3072.1,3071.4,0.472]
[1763525340224,0.66686262,3072.0,3071.4,0.472]
[1763525340430,0.83533203,3072.4,3071.4,0.472]
[1763525340613,0.66675045,3072.3,3071.4,0.472]
[1763525340810,0.66675045,3072.2,3071.4,0.472]
[1763525341017,0.83533203,3073.0,3072.3,0.6741]
[1763525341328,1.86108677,3073.4,3072.5,0.4743]
[1763525341329,0.66690235,3072.9,3072.5,0.4743]
[1763525341534,0.66690235,3072.8,3072.5,0.4743]
[1763525341738,0.83533203,3073.2,3072.3,0.1998]
[1763525341934,1.11377604,3072.5,3072.1,0.1998]
[1763525342134,0.83352505,3072.3,3072.2,0.471]
[1763525342333,1.50037905,3072.3,3072.2,0.471]
[1763525342534,0.666854,3072.3,3072.2,0.9453]
[1763525345439,0.83352505,3072.9,3072.2,0.9453]
[1763525345649,0.66741395,3072.8,3072.3,0.471]
[1763525345837,0.83352505,3073.5,3072.3,0.471]
[1763525346036,0.66754165,3073.4,3072.3,0.471]
[1763525346239,0.66754165,3073.3,3072.3,0.471]
[1763525346456,0.83352505,3073.6,3072.3,0.471]
[1763525346641,0.66807765,3073.5,3072.3,0.471]
[1763525346844,0.66807765,3073.4,3072.3,0.471]
[1763525347044,0.66807765,3073.3,3072.3,0.471]
[1763525347279,0.83352505,3073.6,3072.3,0.471]
[1763525347280,0.66807765,3073.2,3072.3,0.471]
[1763525347492,0.66807765,3073.1,3072.3,0.471]
[1763525347658,0.66807765,3073.0,3072.3,0.471]
[1763525347971,0.002,3072.7,3072.3,0.471]
[1763525348335,0.002,3072.7,3072.6,0.4648]
[1763525348538,0.002,3072.7,3072.6,0.9498]
[1763525350881,0.002,3072.7,3072.6,1.355304]
[1763525357415,1.52107867,3072.7,3072.6,1.355304]
[1763525357617,0.002,3072.7,3072.6,1.355304]
[1763525358411,0.002,3073.0,3072.7,0.405504]
[1763525358583,0.83352505,3074.0,3073.0,0.405504]
[1763525358781,0.68561179,3073.9,3073.8,0.1934]
[1763525359585,0.68561179,3073.9,3073.6,0.1934]
[1763525359785,0.83352505,3074.3,3073.6,0.1934]
[1763525360115,0.68530976,3074.2,3073.6,0.1934]
[1763525360335,0.68530976,3074.1,3073.6,0.1934]
[1763525360615,0.68530976,3074.0,3073.6,0.1934]
[1763525360790,0.68530976,3073.9,3073.6,0.1934]
[1763525360992,0.83352505,3074.2,3073.6,0.1934]
[1763525361321,0.6741,3073.7,3073.0,0.485]
[1763525361504,0.6741,3073.7,3072.8,0.485]
[1763525361505,0.68534853,3073.6,3072.8,0.485]
[1763525361819,0.68534853,3073.5,3072.8,0.485]
[1763525361995,0.1976,3073.7,3072.8,0.485]
[1763525362193,0.68548884,3073.6,3072.8,0.485]
[1763525362414,0.68548884,3073.5,3072.8,0.485]
[1763525362585,0.68548884,3073.4,3072.8,0.485]
[1763525362788,0.6618,3073.7,3071.7,5.96423731]
[1763525363101,0.83352505,3073.4,3072.3,0.4914]
[1763525363282,1.51913798,3073.3,3072.3,0.4914]
[1763525363480,0.68561293,3073.2,3072.3,0.4914]
[1763525363715,0.68561293,3073.1,3072.3,0.4914]
[1763525363897,0.68561293,3073.0,3072.3,0.4914]
[1763525364106,0.4642,3073.3,3071.9,0.4914]
[1763525364308,0.1772,3072.9,3071.9,0.4914]
[1763525364633,0.68620026,3072.8,3071.9,0.4914]
[1763525364819,0.68620026,3072.7,3071.4,0.001]
[1763525365008,0.1772,3072.9,3072.1,0.6912]
[1763525365342,0.68619024,3072.8,3072.2,0.4914]
[1763525365541,0.68619024,3072.7,3072.6,0.001]
[1763525366202,0.68619024,3072.7,3072.6,0.4781]
[1763525366553,2.02076868,3073.2,3072.6,0.4781]
[1763525366554,0.83352505,3073.2,3072.6,0.4781]
[1763525366714,1.57797604,3073.5,3072.9,0.4771]
[1763525366715,0.68706325,3073.1,3072.9,0.4771]
[1763525366915,0.83352505,3073.6,3072.9,0.4771]
[1763525367130,0.68709635,3073.5,3073.0,0.4771]
[1763525367303,0.1976,3073.7,3072.6,0.001]
[1763525367304,0.68709635,3073.4,3072.6,0.001]
[1763525367505,0.4642,3073.6,3072.6,0.001]
[1763525367811,0.68722745,3073.5,3072.6,0.001]
[1763525368110,0.68722745,3073.4,3072.6,0.001]
[1763525368442,0.68722745,3073.3,3072.6,0.001]
[1763525368645,0.4642,3073.6,3072.6,0.001]
[1763525368942,0.68744015,3073.5,3072.6,0.4924]
[1763525369129,0.68744015,3073.4,3072.6,0.4924]
[1763525369327,0.68744015,3073.3,3072.6,0.4924]
[1763525369540,1.03112505,3073.7,3072.6,0.4924]
[1763525369708,0.68788513,3073.6,3073.2,0.4771]
[1763525369910,0.188,3073.9,3073.2,0.4771]
[1763525370107,0.68789657,3073.8,3073.2,0.4771]
[1763525370313,0.68789657,3073.7,3073.1,0.1815]
[1763525370629,0.68789657,3073.6,3072.8,0.4914]
[1763525370833,0.68801116,3073.8,3072.8,0.4914]
[1763525371034,0.6522,3073.9,3072.8,0.4914]
[1763525371237,0.68811899,3073.8,3072.8,0.4914]
[1763525371552,0.4642,3073.8,3072.8,0.4914]
[1763525371936,0.002,3074.1,3072.8,0.4914]
[1763525372252,0.4642,3074.0,3072.8,0.4914]
[1763525372644,0.188,3073.9,3072.8,0.4914]
[1763525373019,0.4642,3073.8,3072.6,0.4924]
[1763525374251,0.188,3073.9,3072.6,0.4924]
[1763525375857,0.002,3074.1,3072.6,0.4924]
[1763525377551,0.4878,3074.1,3072.6,0.4924]
[1763525378763,0.4878,3074.1,3072.7,0.405504]
[1763525379057,0.002,3074.1,3072.7,0.405504]
[1763525379274,0.002,3074.1,3072.9,0.405504]
[1763525379660,0.002,3074.1,3074.0,0.6869]
[1763525380275,0.002,3074.1,3074.0,1.1711]
[1763525381284,0.002,3074.1,3073.6,0.4842]
[1763525381580,0.002,3074.1,3074.0,0.4994]
[1763525381782,0.002,3074.1,3073.2,0.1875]
[1763525381983,0.002,3074.1,3073.3,0.405504]
[1763525382280,0.002,3074.1,3073.2,0.6717]
[1763525382450,0.002,3074.1,3073.3,0.4842]
[1763525383171,0.002,3074.1,3074.0,0.4994]
[1763525383539,0.002,3074.1,3074.0,0.9836]
[1763525388087,0.002,3074.1,3074.0,1.389104]
[1763525390694,0.002,3074.1,3074.0,1.85266228]
[1763525390859,0.002,3074.8,3074.1,0.405504]
[1763525391064,0.002,3074.8,3074.4,1.98679664]